bitfinex-derivatives/quotes_BNBF0:USTF0_20250316
["timestamp","ask_amount","ask_price","bid_price","bid_amount"]
[1742100767672,2.51849035,608.43,607.77,3.505]
[1742100770280,2.51849035,608.42,607.77,3.505]
[1742100772277,2.51849035,608.49,607.77,3.505]
[1742100774280,2.51849035,608.55,607.77,3.505]
[1742100776779,2.51849035,608.8,607.77,3.505]
[1742100776780,2.51849035,608.56,607.77,3.505]
[1742100778282,2.51849035,608.56,607.77,5.53]
[1742100778582,2.51849035,608.57,607.77,5.53]
[1742100780077,2.51849035,608.49,607.77,5.53]
[1742100781677,2.51849035,608.62,607.77,5.53]
[1742100783479,2.51849035,608.66,607.77,5.53]
[1742100785687,0.32846115,608.9,607.77,5.53]
[1742100787488,2.51849035,608.77,607.77,5.53]
[1742100788887,2.51849035,608.77,607.77,7.745]
[1742100791890,2.51849035,608.69,607.77,7.745]
[1742100793391,2.51849035,608.7,607.77,7.745]
[1742100794789,2.84706482,608.69,607.77,7.745]
[1742100794990,0.32857987,608.68,607.77,7.745]
[1742100798598,2.51849035,608.64,607.77,7.745]
[1742100798900,2.84709182,608.64,607.77,7.745]
[1742100799400,0.32860687,608.63,607.77,7.745]
[1742100804498,2.51849035,608.52,607.77,7.745]
[1742100806004,2.51849035,608.6,607.77,7.745]
[1742100806206,0.32862846,608.59,607.77,7.745]
[1742100812005,2.51849035,608.58,607.77,7.745]
[1742100812211,0.32863926,608.57,607.77,7.745]
[1742100835533,2.51849035,608.54,607.77,7.745]
[1742100837435,2.51849035,608.42,607.77,7.745]
[1742100839135,2.51849035,608.38,607.77,7.745]
[1742100841038,2.51849035,608.17,607.77,7.745]
[1742100841438,2.51849035,608.17,606.38,1.23354629]
[1742100841639,2.51849035,608.17,606.4,0.3298153]
[1742100841839,2.51849035,608.17,606.41,2.67591995]
[1742100842037,2.51849035,608.17,606.43,0.32979898]
[1742100842234,2.51849035,608.17,606.44,2.97832661]
[1742100842539,2.51849035,608.17,606.46,0.32978267]
[1742100842833,2.51849035,608.11,606.47,2.97832661]
[1742100843034,2.51849035,608.11,606.57,0.32972286]
[1742100843340,2.51849035,608.11,606.58,2.97832661]
[1742100843538,2.51849035,608.11,606.6,0.32970656]
[1742100843735,2.51849035,608.11,606.61,2.97832661]
[1742100844036,2.51849035,608.11,606.63,0.32969025]
[1742100844235,2.51849035,608.11,606.64,2.97832661]
[1742100844435,2.51849035,608.11,606.66,0.32967395]
[1742100844636,2.51849035,608.11,606.67,2.97832661]
[1742100844840,2.51849035,608.11,606.69,0.32965765]
[1742100845039,2.51849035,608.11,606.7,2.97832661]
[1742100845241,0.32863926,608.57,606.72,0.32964135]
[1742100845434,0.32863926,608.57,606.73,4.12636542]
[1742100845638,0.32863926,608.57,606.75,0.32962505]
[1742100845839,0.32863926,608.57,606.76,2.67591995]
[1742100846039,0.32863926,608.57,606.78,0.32960875]
[1742100846235,0.32863926,608.57,606.79,2.97828685]
[1742100846442,0.32863926,608.57,606.81,0.32959245]
[1742100846641,0.32863926,608.57,606.82,2.97828685]
[1742100846836,0.32863926,608.57,606.84,0.32957616]
[1742100847036,0.32863926,608.57,606.85,0.3023669]
[1742100847241,0.32863926,608.57,606.87,0.32955987]
[1742100847444,0.32863926,608.57,606.88,2.97967946]
[1742100847635,0.32863926,608.57,606.9,0.32954358]
[1742100847838,0.32863926,608.57,606.91,2.97967946]
[1742100848039,0.32863926,608.57,606.93,0.32952729]
[1742100848241,0.32863926,608.57,606.94,2.97967946]
[1742100848442,0.32863926,608.57,606.96,0.329511]
[1742100848642,0.32863926,608.57,606.97,4.12771827]
[1742100848837,0.32863926,608.57,606.99,0.32949471]
[1742100849043,0.32863926,608.57,607.0,2.97967946]
[1742100849243,0.32863926,608.57,607.02,0.32947843]
[1742100849445,0.32863926,608.57,607.03,2.97967946]
[1742100849642,0.32863926,608.57,607.05,0.32946215]
[1742100849844,0.32863926,608.57,607.06,2.97967946]
[1742100850040,0.32863926,608.57,607.08,0.32944587]
[1742100850341,0.32863926,608.57,607.09,2.97967946]
[1742100850539,0.32863926,608.57,607.11,0.32942959]
[1742100850743,0.32863926,608.57,607.12,2.97967946]
[1742100851044,0.32863926,608.57,607.14,0.32941331]
[1742100851240,0.32863926,608.57,607.15,2.97967946]
[1742100851447,0.32863926,608.57,607.17,0.32939703]
[1742100851745,0.32863926,608.57,607.18,2.67731256]
[1742100851941,0.32863926,608.57,607.2,0.32938076]
[1742100852146,0.32863926,608.57,607.21,2.67731256]
[1742100852347,0.32863926,608.57,607.23,0.32936449]
[1742100852548,0.32863926,608.57,607.24,2.67731256]
[1742100852747,0.32863926,608.57,607.26,0.32934821]
[1742100852946,0.32863926,608.57,607.27,2.67731256]
[1742100853149,0.32863926,608.57,607.28,3.00652617]
[1742100853348,0.32863926,608.57,607.29,3.00652075]
[1742100853547,0.32863926,608.57,607.3,3.00651532]
[1742100853748,0.32863926,608.57,607.31,3.0065099]
[1742100853948,0.32863926,608.57,607.32,3.00650448]
[1742100854248,0.32863926,608.57,607.33,3.00649905]
[1742100854452,0.32863926,608.57,607.34,4.15453244]
[1742100854642,0.32863926,608.57,607.35,3.00648821]
[1742100854848,0.32863926,608.57,607.36,3.00648279]
[1742100855046,0.32863926,608.57,607.37,3.00647737]
[1742100855351,0.32863926,608.57,607.38,4.15451076]
[1742100855543,0.32863926,608.57,607.39,3.00646652]
[1742100855747,0.32863926,608.57,607.4,3.0064611]
[1742100856048,0.32863926,608.57,607.41,3.00645568]
[1742100856246,0.32863926,608.57,607.38,1.14803881]
[1742100856247,0.32863926,608.57,607.42,3.00645026]
[1742100856447,0.32863926,608.57,607.43,2.6771888]
[1742100856653,0.32863926,608.57,607.44,3.00643942]
[1742100856947,0.32863926,608.57,607.45,4.15447281]
[1742100857148,0.32863926,608.57,607.46,3.00642858]
[1742100857346,0.32863926,608.57,607.47,2.6771888]
[1742100857543,0.32863926,608.57,607.48,2.6771888]
[1742100857748,0.32863926,608.57,607.49,2.6771888]
[1742100857955,0.32863926,608.57,607.5,2.6771888]
[1742100858149,0.32863926,608.57,607.51,2.6771888]
[1742100858349,0.32863926,608.57,607.52,3.82522761]
[1742100858545,0.32863926,608.57,607.53,2.6771888]
[1742100858750,0.32863926,608.57,607.54,1.029688]
[1742100858952,0.32863926,608.57,607.55,1.029688]
[1742100859151,0.32863926,608.57,607.56,1.029688]
[1742100859354,0.32863926,608.57,607.57,1.029688]
[1742100859549,0.32863926,608.57,607.58,1.029688]
[1742100859748,0.32863926,608.57,607.59,1.029688]
[1742100859952,0.32863926,608.57,607.6,1.029688]
[1742100860249,0.32863926,608.57,607.61,2.67571877]
[1742100860455,0.32863926,608.57,607.62,1.029688]
[1742100860753,0.32863926,608.57,607.63,1.029688]
[1742100860953,0.32863926,608.57,607.64,1.029688]
[1742100861149,0.32863926,608.57,607.65,1.029688]
[1742100861352,0.32863926,608.57,607.46,0.32923978]
[1742100861553,0.32863926,608.57,607.64,2.092]
[1742100861751,0.32863926,608.57,607.65,1.02843196]
[1742100863156,0.32863926,608.57,607.64,2.092]
[1742100863157,0.32863926,608.57,607.66,1.02827284]
[1742100863360,0.32863926,608.57,607.64,2.092]
[1742100863559,0.32863926,608.57,607.65,1.02814649]
[1742100863857,0.32863926,608.57,607.64,2.092]
[1742100864055,0.32863926,608.57,607.65,1.02814915]
[1742100864250,0.32863926,608.57,607.64,2.092]
[1742100864856,0.32863926,608.57,607.65,1.02803113]
[1742100865053,0.32863926,608.57,607.64,2.092]
[1742100867568,2.51849035,608.63,607.65,1.356937]
[1742100867775,2.51849035,608.63,607.64,2.092]
[1742100867776,2.51849035,608.63,607.66,2.99508824]
[1742100867962,2.51849035,608.63,607.67,1.35084857]
[1742100868166,2.51849035,608.63,607.68,0.32912058]
[1742100868964,2.51849035,609.2,607.68,0.32912058]
[1742100869169,0.32831018,609.18,607.68,0.32912058]
[1742100871070,0.32831018,609.18,607.68,2.29412058]
[1742100875872,0.32831018,609.18,607.68,3.64912058]
[1742100877872,0.32831018,609.18,607.68,5.23912058]
[1742100879869,0.32831018,609.18,607.69,1.0250042]
[1742100880071,0.32831018,609.18,607.7,1.35411395]
[1742100880371,0.32831018,609.18,607.71,1.35410854]
[1742100880672,0.32831018,609.18,607.72,1.0250042]
[1742100880869,0.32831018,609.18,607.73,1.0250042]
[1742100881069,0.32831018,609.18,607.71,0.32910434]
[1742100881269,0.32831018,609.18,607.72,1.02487185]
[1742100881466,0.32831018,609.18,607.73,1.02487185]
[1742100881769,0.32831018,609.18,607.74,1.024746]
[1742100881970,0.32831018,609.18,607.71,0.32910434]
[1742100882166,0.32831018,609.18,607.72,1.02474495]
[1742100882466,0.32831018,609.18,607.73,1.02474495]
[1742100882666,0.32831018,609.18,607.74,1.02474495]
[1742100882870,0.32831018,609.18,607.71,0.32910434]
[1742100883071,0.32831018,609.18,607.72,1.02463896]
[1742100883268,0.32831018,609.18,607.73,1.02463896]
[1742100883473,0.32831018,609.18,607.71,0.32910434]
[1742100883773,0.32831018,609.18,607.72,1.02455759]
[1742100884073,0.32831018,609.18,607.73,1.02455759]
[1742100884274,0.32831018,609.18,607.71,0.32910434]
[1742100884473,0.32831018,609.18,607.72,1.02448782]
[1742100884669,0.32831018,609.18,607.71,0.32910434]
[1742100884873,0.32831018,609.18,607.72,1.02450169]
[1742100885074,0.32831018,609.18,607.71,0.32910434]
[1742100885374,0.32831018,609.18,607.72,1.02452756]
[1742100885569,0.32831018,609.18,607.71,0.32910434]
[1742100885774,2.51849035,609.17,607.72,1.02446017]
[1742100885975,0.32832096,609.16,607.71,0.32910434]
[1742100886275,0.32832096,609.16,607.72,1.02445956]
[1742100886469,0.32832096,609.16,607.71,0.32910434]
[1742100887670,0.32832096,609.16,607.72,1.02444386]
[1742100887873,0.32832096,609.16,607.73,1.02444386]
[1742100888073,0.32832096,609.16,607.71,0.32910434]
[1742100888272,0.32832096,609.16,607.72,1.02446393]
[1742100888473,0.32832096,609.16,607.73,1.02446393]
[1742100888675,0.32832096,609.16,607.71,0.32910434]
[1742100888876,0.32832096,609.16,607.72,1.02440537]
[1742100889077,0.32832096,609.16,607.71,0.32910434]
[1742100889271,0.32832096,609.16,607.72,1.02443552]
[1742100889474,0.32832096,609.16,607.71,0.32910434]
[1742100889673,0.32832096,609.16,607.72,1.02444613]
[1742100889875,0.32832096,609.16,607.71,0.32910434]
[1742100890174,0.32832096,609.16,607.72,1.02444613]
[1742100890371,0.32832096,609.16,607.71,0.32910434]
[1742100890574,0.32832096,609.16,607.72,1.02449396]
[1742100890774,0.32832096,609.16,607.73,1.02449396]
[1742100890975,0.32832096,609.16,607.74,1.02449396]
[1742100891176,0.32832096,609.16,607.71,0.32910434]
[1742100892380,2.51849035,609.04,607.71,0.32910434]
[1742100892679,0.32839104,609.03,607.72,1.02453389]
[1742100892874,0.32839104,609.03,607.73,0.32909351]
[1742100893982,0.32839104,609.03,607.74,1.02456456]
[1742100894182,0.32839104,609.03,607.75,1.35364724]
[1742100894383,2.51849035,608.99,607.76,1.35364182]
[1742100894583,2.51849035,608.99,607.77,1.35363641]
[1742100894883,2.51849035,608.99,607.78,0.32906643]
[1742100896187,0.32839104,609.03,607.78,0.32906643]
[1742100898188,0.32839104,609.03,607.79,1.02495522]
[1742100898382,0.32839104,609.03,607.8,1.35401083]
[1742100898584,0.32839104,609.03,607.81,2.49710237]
[1742100898785,0.32839104,609.03,607.82,1.354]
[1742100898986,0.32839104,609.03,607.83,1.35399458]
[1742100899287,0.32839104,609.03,607.84,1.35398917]
[1742100899486,0.32839104,609.03,607.85,1.35398376]
[1742100899688,0.32839104,609.03,607.86,1.35397835]
[1742100899881,0.32839104,609.03,607.87,1.35397293]
[1742100900083,0.32839104,609.03,607.88,1.35396752]
[1742100900288,0.32839104,609.03,607.89,1.35396211]
[1742100900483,0.32839104,609.03,607.9,1.3539567]
[1742100900683,0.32839104,609.03,607.91,1.02495522]
[1742100900887,0.32839104,609.03,607.92,1.02495522]
[1742100901083,0.32839104,609.03,607.93,1.02480351]
[1742100901285,0.32839104,609.03,607.94,1.02480351]
[1742100901488,2.51849035,609.39,607.95,2.99330619]
[1742100901689,0.32820243,609.38,607.96,2.66433177]
[1742100901889,0.32820243,609.38,607.97,2.66433177]
[1742100902090,0.32820243,609.38,607.98,2.66433177]
[1742100902287,0.32820243,609.38,607.99,2.99328454]
[1742100902485,0.32820243,609.38,608.0,1.35375087]
[1742100902685,0.32820243,609.38,608.01,2.99247956]
[1742100902890,0.32820243,609.38,608.0,1.96]
[1742100902891,0.32820243,609.38,608.02,1.35374005]
[1742100903090,0.32820243,609.38,608.03,1.35373464]
[1742100903290,2.51849035,609.21,608.04,1.35372923]
[1742100903488,2.51849035,609.21,608.05,1.35372382]
[1742100903688,2.51849035,609.21,608.06,1.35371841]
[1742100903888,2.51849035,609.21,608.07,1.35371301]
[1742100904084,2.51849035,609.21,608.08,1.3537076]
[1742100904294,2.51849035,609.21,608.09,0.32889868]
[1742100905087,0.32820243,609.38,608.09,0.32889868]
[1742100907593,0.32820243,609.38,608.1,2.16]
[1742100908594,2.51849035,609.17,608.1,2.16]
[1742100910400,2.51849035,609.18,608.1,2.16]
[1742100911898,2.51849035,609.04,608.1,2.16]
[1742100912998,2.51849035,609.12,608.1,2.16]
[1742100914900,2.51849035,609.18,608.1,2.16]
[1742100916902,2.51849035,609.36,608.1,2.16]
[1742100918302,0.32820243,609.38,608.1,2.16]
[1742100923710,0.32820243,609.38,608.11,1.967]
[1742100928415,2.51849035,609.33,608.11,1.967]
[1742100929723,2.51849035,609.32,608.11,1.967]
[1742100931520,2.51849035,609.23,608.11,1.967]
[1742100932922,2.51849035,609.23,608.12,1.954]
[1742100933122,2.51849035,609.18,608.12,1.954]
[1742100935125,2.51849035,609.26,608.12,1.954]
[1742100935524,2.51849035,609.26,608.13,1.02547096]
[1742100935825,2.51849035,609.26,608.14,1.02547096]
[1742100936025,2.51849035,609.26,608.15,1.35433719]
[1742100936220,2.51849035,609.26,608.16,1.35433178]
[1742100936422,2.51849035,609.26,608.17,1.35432637]
[1742100936619,2.51849035,609.26,608.18,1.35432097]
[1742100936823,2.51849035,609.26,608.19,1.35431556]
[1742100937026,2.51849035,609.26,608.2,1.35431015]
[1742100937321,2.51849035,609.26,608.21,1.35430475]
[1742100937523,0.32820243,609.38,608.21,0.32883379]
[1742100939428,2.51849035,609.22,608.21,0.32883379]
[1742100940325,2.51849035,609.22,608.22,4.101]
[1742100940930,2.51849035,609.23,608.22,4.101]
[1742100942726,2.51849035,609.34,608.22,4.101]
[1742100942928,0.32822936,609.33,608.22,4.101]
[1742100943734,2.51849035,609.28,608.22,4.101]
[1742100944025,0.32826169,609.27,608.22,4.101]
[1742100948530,2.51849035,609.07,608.22,4.101]
[1742100950031,2.51849035,609.08,608.22,4.101]
[1742100951632,2.51849035,609.08,608.23,1.469]
[1742100952030,2.51849035,609.1,608.23,1.469]
[1742100953532,2.51849035,609.06,608.23,1.469]
[1742100954932,2.51849035,609.06,608.24,1.917]
[1742100955833,0.32826169,609.27,608.24,1.917]
[1742100955834,2.51849035,608.99,608.24,1.917]
[1742100958030,2.51849035,608.95,608.24,1.917]
[1742100959937,2.51849035,609.02,608.24,1.917]
[1742100960632,2.51849035,609.01,608.24,1.917]
[1742100968437,0.32826169,609.27,608.24,1.917]
[1742100968438,2.51849035,608.99,608.24,1.917]
[1742100969444,2.51849035,608.99,608.25,1.951]
[1742100970543,2.51849035,609.11,608.25,1.951]
[1742100972246,2.51849035,609.06,608.25,1.951]
[1742100973845,2.51849035,609.0,608.25,1.951]
[1742100974745,2.51849035,609.0,608.26,1.726]
[1742100976041,2.51849035,609.03,608.26,1.726]
[1742100977746,2.51849035,609.01,608.26,1.726]
[1742100978946,2.51849035,608.95,608.26,1.726]
[1742100980244,2.51849035,608.91,608.26,1.726]
[1742100981743,2.51849035,608.91,608.27,1.524]
[1742100982247,2.51849035,608.88,608.27,1.524]
[1742100985546,2.51849035,608.88,608.27,3.619]
[1742100987244,2.51849035,608.85,608.27,3.619]
[1742100989151,2.51849035,608.78,608.27,3.619]
[1742100991651,2.51849035,608.9,608.27,3.619]
[1742100993448,0.32826169,609.27,608.27,3.619]
[1742100993449,2.51849035,608.97,608.27,3.619]
[1742100995057,2.51849035,608.94,608.27,3.619]
[1742100996354,2.51849035,608.95,608.27,3.619]
[1742100998662,2.51849035,608.95,608.27,5.697]
[1742101000063,2.51849035,608.92,608.27,5.697]
[1742101001765,2.51849035,608.91,608.27,5.697]
[1742101002466,2.51849035,608.91,608.27,7.723]
[1742101003862,2.51849035,608.83,608.27,7.723]
[1742101004670,2.51849035,608.83,608.27,5.628]
[1742101006071,2.51849035,608.84,608.27,5.628]
[1742101007387,2.51849035,608.84,608.27,7.435]
[1742101008180,0.32826169,609.27,608.27,7.435]
[1742101008181,2.51849035,608.83,608.27,7.435]
[1742101008582,2.51849035,608.83,608.27,5.911]
[1742101010180,2.51849035,608.78,608.27,5.911]
[1742101012384,2.51849035,608.74,608.27,5.911]
[1742101014782,2.51849035,609.05,608.27,5.911]
[1742101015785,2.51849035,609.16,608.27,5.911]
[1742101015786,2.51849035,609.04,608.27,5.911]
[1742101020491,2.51849035,609.11,608.27,5.911]
[1742101022192,2.51849035,609.18,608.27,5.911]
[1742101024494,2.51849035,609.23,608.27,5.911]
[1742101026799,2.51849035,609.21,608.27,5.911]
[1742101028498,2.51849035,609.22,608.27,5.911]
[1742101030498,0.32826169,609.27,608.27,5.911]
[1742101030499,2.51849035,609.17,608.27,5.911]
[1742101033202,2.51849035,609.04,608.27,5.911]
[1742101035404,2.51849035,608.97,608.27,5.911]
[1742101039602,2.51849035,609.11,608.27,5.911]
[1742101040704,2.51849035,609.11,608.27,7.433]
[1742101041206,2.51849035,609.1,608.27,7.433]
[1742101043809,2.51849035,609.21,608.27,7.433]
[1742101044517,2.51849035,609.21,608.28,1.01582892]
[1742101044711,2.51849035,609.24,608.29,1.01582892]
[1742101045011,2.51849035,609.24,608.3,1.01573957]
[1742101045312,2.51849035,609.24,608.27,1.522]
[1742101045506,2.51849035,609.24,608.28,1.01540106]
[1742101045707,2.51849035,609.24,608.27,1.522]
[1742101046312,0.32826169,609.27,608.27,1.522]
[1742101046313,2.51849035,609.21,608.27,1.522]
[1742101047612,2.51849035,609.21,608.27,3.437]
[1742101048211,2.51849035,609.21,608.27,5.412]
[1742101048412,2.51849035,609.21,608.27,6.889]
[1742101049913,0.32826169,609.27,608.27,6.889]
[1742101049914,2.51849035,609.17,608.27,6.889]
[1742101051318,2.51849035,609.14,608.27,6.889]
[1742101053518,2.51849035,609.26,608.27,6.889]
[1742101055320,2.51849035,609.2,608.27,6.889]
[1742101057018,2.51849035,609.24,608.27,6.889]
[1742101058827,2.84675204,609.27,608.27,6.889]
[1742101060230,2.51849035,609.24,608.27,6.889]
[1742101061632,2.51849035,609.12,608.27,6.889]
[1742101063032,2.51849035,609.13,608.27,6.889]
[1742101064628,2.51849035,609.08,608.27,6.889]
[1742101066027,2.51849035,609.12,608.27,6.889]
[1742101067736,2.51849035,609.1,608.27,6.889]
[1742101069341,2.51849035,609.13,608.27,6.889]
[1742101071139,2.51849035,609.11,608.27,6.889]
[1742101073237,2.51849035,609.09,608.27,6.889]
[1742101074840,0.32826169,609.27,608.27,6.889]
[1742101078440,2.51849035,609.25,608.27,6.889]
[1742101080548,2.51849035,609.26,608.27,6.889]
[1742101082447,2.84675204,609.27,608.27,6.889]
[1742101084247,2.51849035,609.04,608.27,6.889]
[1742101085851,2.51849035,609.05,608.27,6.889]
[1742101087352,2.51849035,609.05,608.28,1.0135933]
[1742101087555,2.51849035,609.05,608.29,1.0135933]
[1742101087850,2.51849035,609.14,608.21,0.32883379]
[1742101088855,2.51849035,609.13,608.22,1.01363005]
[1742101089056,2.51849035,609.13,608.23,1.01362636]
[1742101089260,2.51849035,609.13,608.24,1.01362636]
[1742101089454,2.51849035,609.13,608.25,1.01362636]
[1742101089757,2.51849035,609.13,608.26,1.01362636]
[1742101090258,2.51849035,609.17,608.26,1.01362636]
[1742101090863,2.51849035,609.17,608.27,3.162]
[1742101091057,2.51849035,609.17,608.28,1.01362636]
[1742101091660,2.51849035,609.17,608.28,2.34062636]
[1742101091862,2.51849035,609.17,608.29,1.01362636]
[1742101092263,2.51849035,609.21,608.29,1.01362636]
[1742101094065,2.51849035,609.23,608.29,1.01362636]
[1742101095564,0.32826169,609.27,608.29,1.01362636]
[1742101097458,2.51849035,609.24,608.29,1.01362636]
[1742101098774,2.51849035,609.24,608.3,1.01450334]
[1742101098966,2.51849035,609.26,608.31,1.01450334]
[1742101099170,2.51849035,609.26,608.32,1.01450334]
[1742101099371,2.51849035,609.26,608.28,3.386]
[1742101099571,2.51849035,609.26,608.29,1.01458523]
[1742101099767,2.51849035,609.26,608.3,1.01458523]
[1742101099971,2.51849035,609.26,608.31,1.01458523]
[1742101100173,2.51849035,609.26,608.32,1.01481253]
[1742101100371,2.51849035,609.22,608.33,1.01481253]
[1742101100569,2.51849035,609.22,608.28,3.386]
[1742101100770,2.51849035,609.22,608.29,1.01468761]
[1742101100970,2.51849035,609.22,608.3,1.01468761]
[1742101101170,2.51849035,609.22,608.31,1.01468761]
[1742101101367,2.51849035,609.22,608.32,1.01468761]
[1742101101667,2.51849035,609.22,608.33,1.01468761]
[1742101101867,2.51849035,609.22,608.28,3.386]
[1742101102173,2.84675204,609.27,608.29,1.01481814]
[1742101102366,2.84675204,609.27,608.3,1.01481814]
[1742101102569,2.84675204,609.27,608.28,3.386]
[1742101102767,2.84675204,609.27,608.29,1.01506336]
[1742101102973,2.84675204,609.27,608.28,3.386]
[1742101103175,2.84675204,609.27,608.29,1.01508272]
[1742101103374,2.84675204,609.27,608.3,1.01508272]
[1742101103574,2.84675204,609.27,608.31,1.01508272]
[1742101103773,0.32826169,609.27,608.32,1.01508272]
[1742101103968,0.32826169,609.27,608.33,1.01508272]
[1742101104169,0.32826169,609.27,608.34,1.01508272]
[1742101104372,2.51849035,609.35,608.35,1.01508272]
[1742101104575,2.51849035,609.35,608.36,1.01508272]
[1742101104770,2.51849035,609.35,608.37,1.01508272]
[1742101104970,2.51849035,609.35,608.38,1.01508272]
[1742101105272,2.51849035,609.35,608.28,3.386]
[1742101105476,2.51849035,609.35,608.39,1.467]
[1742101106071,2.51849035,609.46,608.39,1.467]
[1742101107883,2.51849035,609.32,608.39,1.467]
[1742101109378,2.51849035,609.37,608.39,1.467]
[1742101111284,2.51849035,609.35,608.39,1.467]
[1742101113278,2.51849035,609.39,608.4,1.01291423]
[1742101113484,2.51849035,609.39,608.41,1.01291423]
[1742101113684,2.51849035,609.39,608.42,1.01291423]
[1742101113985,2.51849035,609.39,608.43,1.01291423]
[1742101114178,2.51849035,609.39,608.44,1.01291423]
[1742101114378,2.51849035,609.39,608.45,1.01251135]
[1742101114582,2.51849035,609.39,608.45,2.101]
[1742101115284,2.51849035,609.56,608.45,2.101]
[1742101116886,2.51849035,609.6,608.45,2.101]
[1742101118490,2.51849035,609.6,608.46,1.0116543]
[1742101118685,2.51849035,609.62,608.47,1.0116543]
[1742101118885,2.51849035,609.62,608.48,1.0116543]
[1742101119086,2.51849035,609.62,608.49,1.0116543]
[1742101119286,2.51849035,609.62,608.5,1.34033137]
[1742101119486,2.51849035,609.62,608.51,1.34032597]
[1742101119682,2.51849035,609.62,608.51,0.32867167]
[1742101120183,2.51849035,609.81,608.51,0.32867167]
[1742101120382,0.32797638,609.8,608.51,0.32867167]
[1742101122190,2.51849035,609.76,608.51,0.32867167]
[1742101122589,2.51849035,609.76,608.52,1.979]
[1742101123391,2.51849035,609.74,608.52,1.979]
[1742101124890,2.51849035,609.69,608.52,1.979]
[1742101125099,0.32804632,609.67,608.52,1.979]
[1742101126494,2.51849035,609.58,608.52,1.979]
[1742101126698,0.32810013,609.57,608.52,1.979]
[1742101129088,2.51849035,609.53,608.52,1.979]
[1742101129291,0.32812705,609.52,608.52,1.979]
[1742101135498,2.8466174,609.52,608.52,1.979]
[1742101136599,2.8466174,609.52,608.52,4.006]
[1742101137197,2.51849035,609.5,608.52,4.006]
[1742101137401,0.3281432,609.49,608.52,6.079]
[1742101138100,0.3281432,609.49,608.52,7.873]
[1742101148507,2.51849035,609.35,608.52,7.873]
[1742101148710,0.32822398,609.34,608.52,7.873]
[1742101150510,2.84671433,609.34,608.52,7.873]
[1742101152410,0.32822398,609.34,608.52,7.873]
[1742101153812,2.51849035,609.31,608.52,7.873]
[1742101154006,0.32824552,609.3,608.52,7.873]
[1742101157417,2.51849035,609.23,608.52,7.873]
[1742101157612,0.32828863,609.22,608.52,7.873]
[1742101159119,2.51849035,609.2,608.52,7.873]
[1742101159321,0.32830479,609.19,608.52,7.873]
[1742101160616,2.51849035,609.17,608.52,7.873]
[1742101162218,0.32830479,609.19,608.52,7.873]
[1742101162219,2.51849035,609.14,608.52,7.873]
[1742101163519,0.32830479,609.19,608.52,7.873]
[1742101163520,2.51849035,609.12,608.52,7.873]
[1742101167722,2.51849035,609.03,608.52,7.873]
[1742101168122,2.51849035,609.03,608.52,2.027]
[1742101171119,2.51849035,609.08,608.52,2.027]
[1742101173726,0.32830479,609.19,608.52,2.027]
[1742101183630,2.51849035,608.84,608.52,2.027]
[1742101185130,2.51849035,608.86,608.52,2.027]
[1742101186728,2.51849035,608.84,608.52,2.027]
[1742101188237,0.32830479,609.19,608.52,2.027]
[1742101188238,2.51849035,608.83,608.52,2.027]
[1742101190231,2.51849035,608.84,608.52,2.027]
[1742101192233,2.51849035,608.82,608.52,2.027]
[1742101193536,2.51849035,608.82,608.51,1.868]
[1742101196749,2.51849035,608.78,608.51,1.868]
[1742101198859,2.51849035,608.99,608.51,1.868]
[1742101199655,2.51849035,608.99,608.25,3.04]
[1742101201160,2.51849035,609.05,608.25,3.04]
[1742101202557,2.51849035,609.05,608.26,1.937]
[1742101202862,2.51849035,609.12,608.26,1.937]
[1742101204455,2.51849035,609.11,608.26,1.937]
[1742101206359,2.51849035,609.09,608.26,1.937]
[1742101207862,2.51849035,609.08,608.26,1.937]
[1742101211465,2.51849035,609.06,608.26,1.937]
[1742101212860,2.51849035,608.96,608.26,1.937]
[1742101213966,2.51849035,608.96,608.27,1.655]
[1742101214970,2.51849035,608.89,608.27,1.655]
[1742101215267,2.51849035,608.89,608.27,3.261]
[1742101216668,2.51849035,608.9,608.27,3.261]
[1742101219071,2.51849035,608.9,608.27,5.101]
[1742101221270,2.51849035,608.93,608.27,5.101]
[1742101223873,0.32830479,609.19,608.27,5.101]
[1742101230673,2.51849035,609.17,608.27,5.101]
[1742101232872,2.51849035,608.77,608.27,5.101]
[1742101233277,2.51849035,608.77,608.27,3.495]
[1742101235278,2.51849035,608.91,608.27,3.495]
[1742101235777,2.51849035,608.91,608.27,5.547]
[1742101238183,2.51849035,608.93,608.27,5.547]
[1742101239982,2.51849035,608.92,608.27,5.547]